fUSD/lending_fUSD_20260523
["ID","MTS","AMOUNT","RATE_DAILY","PERIOD"]
[422865474,1779547838000,-1444.0,0.00011644,2]
[422865479,1779547838000,-163.25,0.00012279,2]
[422865465,1779547838000,-277.93053456,0.00011099,2]
[422865464,1779547838000,-169.36,0.00011022,2]
[422865470,1779547838000,-904.00552859,0.00011099,2]
[422865457,1779547838000,-315.44579433,0.0001,2]
[422865459,1779547838000,-577.61138007,0.0001,2]
[422865456,1779547838000,-224.09042132,0.0001,2]
[422865458,1779547838000,-770.7589289,0.0001,2]
[422865462,1779547838000,-150.0,0.00010989,2]
[422865472,1779547838000,-904.00552859,0.00011099,2]
[422865468,1779547838000,-277.93053456,0.00011099,2]
[422865473,1779547838000,-3014.92,0.00011281,2]
[422865463,1779547838000,-169.36,0.00011022,2]
[422865466,1779547838000,-277.93053456,0.00011099,2]
[422865461,1779547838000,-1152.0,0.00010585,2]
[422865467,1779547838000,-277.93053456,0.00011099,2]
[422865469,1779547838000,-904.0055286,0.00011099,2]
[422865471,1779547838000,-904.00552859,0.00011099,2]
[422865490,1779547838000,-277.93053456,0.00013338,2]
[422865500,1779547838000,-150.0,0.00013364,2]
[422865460,1779547838000,-8457.0,0.00010249,2]
[422865492,1779547838000,-500.0,0.00013356,2]
[422865524,1779547838000,-1271.0,0.00013638,2]
[422865526,1779547838000,-1224.0,0.00013638,2]
[422865528,1779547838000,-150.0,0.00013638,2]
[422865530,1779547838000,-418.0,0.00013638,2]
[422865534,1779547838000,-2000.0,0.00013639,2]
[422865536,1779547838000,-26526.1145085,0.00013686,2]
[422865515,1779547838000,-625.0,0.00013638,2]
[422865539,1779547838000,-172.4957055,0.00013686,2]
[422865550,1779547838000,-289.4491554,0.00013686,2]
[422865541,1779547838000,-87.88293624,0.00013686,2]
[422865557,1779547838000,-1553.19564598,0.00013686,2]
[422865552,1779547838000,-1381.56113524,0.00013686,2]
[422865554,1779547838000,-334.60678248,0.00013686,2]
[422865502,1779547838000,-150.0,0.00013364,2]
[422865547,1779547838000,-312.50730124,0.00013686,2]
[422865517,1779547838000,-3546.0,0.00013638,2]
[422865532,1779547838000,-931.0,0.00013638,2]
[422865509,1779547838000,-150.0,0.00013488,2]
[422865491,1779547838000,-904.00552859,0.00013342,2]
[422865513,1779547838000,-354.06,0.00013525,2]
[422865496,1779547838000,-500.0,0.00013364,2]
[422865495,1779547838000,-500.0,0.00013364,2]
[422865497,1779547838000,-500.0,0.00013364,2]
[422865494,1779547838000,-433.22,0.00013362,2]
[422865498,1779547838000,-500.0,0.00013364,2]
[422865493,1779547838000,-1000.0,0.00013356,2]
[422865504,1779547838000,-150.0,0.00013364,2]
[422865506,1779547838000,-150.0,0.00013364,2]
[422865511,1779547838000,-150.0,0.00013488,2]
[422865508,1779547838000,-161.54571794,0.00013364,2]
[422865510,1779547838000,-150.0,0.00013488,2]
[422865519,1779547838000,-150.0,0.00013638,2]
[422865499,1779547838000,-559.0,0.00013364,2]
[422865796,1779547840000,-166.66,0.00014247,2]
[422865784,1779547840000,-354.06,0.0001384,2]
[422865782,1779547840000,-166.66,0.00013836,2]
[422865780,1779547840000,-152.0,0.00013787,7]
[422865776,1779547840000,-200.0,0.00013699,2]
[422865772,1779547840000,-500.0,0.00013698,2]
[422865766,1779547840000,-1321.95,0.00013698,2]
[422865768,1779547840000,-1321.95,0.00013698,2]
[422865764,1779547840000,-2389.31359742,0.00013686,2]
[422865778,1779547840000,-166.66,0.00013699,2]
[422865763,1779547840000,-500.0,0.00013356,2]
[422865798,1779547840000,-5461.2938161,0.0001425,2]
[422865774,1779547840000,-500.0,0.00013698,2]
[422865802,1779547840000,-1198.20846186,0.0001425,2]
[422865770,1779547840000,-202.44477508,0.00013698,2]
[422865794,1779547840000,-166.66,0.0001411,2]
[422865786,1779547840000,-166.66,0.00013973,2]
[422865831,1779547840000,-102.88596536,0.00014526,5]
[422865829,1779547840000,-150.0,0.00014526,5]
[422865823,1779547840000,-150.0,0.00014526,5]
[422865825,1779547840000,-150.0,0.00014526,5]
[422865817,1779547840000,-2503.0,0.000144,2]
[422865813,1779547840000,-529.62403464,0.0001425,2]
[422865827,1779547840000,-150.0,0.00014526,5]
[422865815,1779547840000,-166.66,0.00014384,2]
[422865811,1779547840000,-4149.0971394,0.0001425,2]
[422865819,1779547840000,-150.0,0.00014487,2]
[422865792,1779547840000,-250.0,0.00014,2]
[422865788,1779547840000,-1108.04908193,0.00013979,2]
[422865790,1779547840000,-150.0,0.00013987,2]
[422865821,1779547840000,-2700.0,0.000145,5]
[422866146,1779547844000,-10800.0,0.000148,5]
[422866170,1779547844000,-209.07,0.00014949,14]
[422866127,1779547844000,-204.0,0.00014702,2]
[422866133,1779547844000,-200.0,0.00014713,2]
[422866144,1779547844000,-1000.0,0.00014726,2]
[422866139,1779547844000,-1004.96835694,0.00014713,2]
[422866137,1779547844000,-200.0,0.00014713,2]
[422866135,1779547844000,-2000.0,0.00014713,2]
[422866148,1779547844000,-1000.0,0.0001485,2]
[422866163,1779547844000,-154.34194292,0.000149,2]
[422866142,1779547844000,-500.0,0.00014726,2]
[422866157,1779547844000,-200.0,0.0001486,2]
[422866155,1779547844000,-200.0,0.0001486,2]
[422866153,1779547844000,-200.0,0.0001486,2]
[422866152,1779547844000,-1000.0,0.0001485,2]
[422866125,1779547844000,-8100.0,0.000147,5]
[422866178,1779547844000,-210.70286127,0.0001499,2]
[422866162,1779547844000,-310.42581066,0.000149,2]
[422866161,1779547844000,-224.0,0.000149,5]
[422866150,1779547844000,-1000.0,0.0001485,2]
[422866119,1779547844000,-277.93053456,0.00014576,2]
[422866118,1779547844000,-162.104,0.00014564,2]
[422866120,1779547844000,-904.00552859,0.00014581,2]
[422866104,1779547844000,-89.72822907,0.00014526,5]
[422866105,1779547844000,-150.27177093,0.00014526,5]
[422866102,1779547844000,-150.0,0.00014526,5]
[422866101,1779547844000,-397.11403464,0.00014526,5]
[422866112,1779547844000,-150.0,0.00014526,5]
[422866103,1779547844000,-500.0,0.00014526,5]
[422866110,1779547844000,-566.0,0.00014526,5]
[422866107,1779547844000,-68.70402493,0.00014526,5]
[422866111,1779547844000,-150.0,0.00014526,5]
[422866109,1779547844000,-500.0,0.00014526,5]
[422866108,1779547844000,-431.29597507,0.00014526,5]
[422866106,1779547844000,-500.0,0.00014526,5]
[422866113,1779547844000,-200.0,0.00014526,5]
[422866117,1779547844000,-1514.511,0.00014564,2]
[422866115,1779547844000,-500.0,0.00014526,5]
[422866116,1779547844000,-494.0,0.00014526,5]
[422866114,1779547844000,-500.0,0.00014526,5]
[422866121,1779547844000,-5400.0,0.000146,5]
[422866123,1779547844000,-350.0,0.0001466,2]
[422866131,1779547844000,-200.0,0.00014713,2]
[422866182,1779547844000,-1321.95,0.00014999,2]
[422866129,1779547844000,-1321.95,0.00014712,2]
[422866176,1779547844000,-150.0,0.00014986,2]
[422866216,1779547844000,-500.0,0.00014999,2]
[422866219,1779547844000,-500.0,0.00014999,2]
[422866168,1779547844000,-495.8303568,0.00014901,2]
[422866220,1779547844000,-500.0,0.00014999,2]
[422866232,1779547844000,-500.0,0.00014999,2]
[422866225,1779547844000,-500.0,0.00014999,2]
[422866214,1779547844000,-500.0,0.00014999,2]
[422866248,1779547844000,-500.0,0.00014999,2]
[422866250,1779547844000,-500.0,0.00014999,2]
[422866253,1779547844000,-888.0,0.00015,5]
[422866255,1779547844000,-769.0,0.00015,5]
[422866257,1779547844000,-150.0,0.00015,2]
[422866246,1779547844000,-500.0,0.00014999,2]
[422866259,1779547844000,-737837.30658385,0.00015,2]
[422866244,1779547844000,-500.0,0.00014999,2]
[422866240,1779547844000,-500.0,0.00014999,2]
[422866261,1779547844000,-172510.72112664,0.00015,2]
[422866264,1779547844000,-192044.10675046,0.00015,2]
[422866263,1779547844000,-8087.47917252,0.00015,2]
[422866213,1779547844000,-500.0,0.00014999,2]
[422866229,1779547844000,-500.0,0.00014999,2]
[422866234,1779547844000,-500.0,0.00014999,2]
[422866222,1779547844000,-500.0,0.00014999,2]
[422866164,1779547844000,-5000.0,0.000149,2]
[422866159,1779547844000,-200.0,0.0001488,2]
[422866180,1779547844000,-151.0,0.00014997,2]
[422866166,1779547844000,-13500.0,0.000149,5]
[422866174,1779547844000,-6816.0,0.00014986,2]
[422866211,1779547844000,-150.0,0.00014999,2]
[422866183,1779547844000,-1321.95,0.00014999,2]
[422866187,1779547844000,-1321.95,0.00014999,2]
[422866185,1779547844000,-1321.95,0.00014999,2]
[422866191,1779547844000,-1321.95,0.00014999,2]
[422866172,1779547844000,-150.0,0.00014986,2]
[422866196,1779547844000,-1321.95,0.00014999,2]
[422866193,1779547844000,-1321.95,0.00014999,2]
[422866203,1779547844000,-1321.95,0.00014999,2]
[422866200,1779547844000,-1321.95,0.00014999,2]
[422866194,1779547844000,-1321.95,0.00014999,2]
[422866189,1779547844000,-1321.95,0.00014999,2]
[422866206,1779547844000,-1321.95,0.00014999,2]
[422866205,1779547844000,-1321.95,0.00014999,2]
[422866209,1779547844000,-1321.95,0.00014999,2]
[422866198,1779547844000,-1321.95,0.00014999,2]
[422866267,1779547846000,-1199.30503039,0.00013638,2]
[422866268,1779547846000,-3238.40276751,0.00013638,2]
[422866269,1779547846000,-398.53951492,0.00013638,2]
[422866322,1779547962000,468.0,0.00028082,120]
[422866323,1779548002000,368795.6081,7.131e-05,2]
[422866334,1779548304000,476.0,0.00028,120]
[422866337,1779548452000,157.35,6.705e-05,2]
[422866336,1779548452000,157.35,5.867e-05,2]
[422866352,1779548945000,1000.0,0.00028081,120]
[422866370,1779549031000,-215.31523495,7.431e-05,2]
[422866372,1779549031000,-157.35,7.543e-05,2]
[422866371,1779549031000,-250.0,7.476e-05,2]
[422866373,1779549031000,-150.0,7.618e-05,2]
[422866404,1779549032000,-587.0,0.00010147,2]
[422866414,1779549032000,-583.0,0.00011162,2]
[422866415,1779549032000,-1456.09,0.00011177,2]
[422866403,1779549032000,-157.35,0.00010058,2]
[422866405,1779549032000,-4059.02,0.00010284,2]
[422866406,1779549032000,-6501.07,0.00010284,2]
[422866407,1779549032000,-161.25758978,0.00010798,2]
[422866412,1779549032000,-2000.0,0.00011053,2]
[422866408,1779549032000,-588.73,0.00010859,2]
[422866411,1779549032000,-240.0,0.00011041,2]
[422866410,1779549032000,-500.0,0.00011022,2]
[422866409,1779549032000,-157.35,0.00010896,2]
[422866422,1779549032000,-274.17,0.00011915,2]
[422866417,1779549032000,-1456.09,0.00011456,2]
[422866428,1779549032000,-150.99,0.00012893,2]
[422866419,1779549032000,-157.35,0.00011734,2]
[422866416,1779549032000,-623.16917658,0.00011356,2]
[422866427,1779549032000,-2000.0,0.00012435,2]
[422866418,1779549032000,-947.92,0.00011731,2]
[422866420,1779549032000,-1456.09,0.00011735,2]
[422866423,1779549032000,-1456.09,0.00012015,2]
[422866426,1779549032000,-361.01,0.00012329,2]
[422866421,1779549032000,-2648.76,0.00011871,2]
[422866425,1779549032000,-1456.09,0.00012294,2]
[422866424,1779549032000,-9999.99,0.00012087,2]
[422866401,1779549032000,-163.47,0.0001,2]
[422866413,1779549032000,-3091.17,0.00011056,2]
[422866402,1779549032000,-2351.0,0.00010037,2]
[422866396,1779549032000,-300.0,9.225e-05,2]
[422866374,1779549032000,-150.0,7.693e-05,2]
[422866375,1779549032000,-150.0,7.769e-05,2]
[422866376,1779549032000,-150.0,7.844e-05,2]
[422866378,1779549032000,-180.0,7.995e-05,2]
[422866389,1779549032000,-7732.39528261,8.582e-05,2]
[422866388,1779549032000,-2685.0,8.55e-05,2]
[422866377,1779549032000,-150.0,7.92e-05,2]
[422866385,1779549032000,-300.0,8.386e-05,2]
[422866382,1779549032000,-623.1691766,8.296e-05,2]
[422866383,1779549032000,-1200.0,8.296e-05,2]
[422866380,1779549032000,-250.0,8.15e-05,2]
[422866379,1779549032000,-250.0,8.137e-05,2]
[422866381,1779549032000,-1200.0,8.295e-05,2]
[422866384,1779549032000,-157.35,8.382e-05,2]
[422866387,1779549032000,-1341.0,8.387e-05,2]
[422866386,1779549032000,-300.0,8.386e-05,2]
[422866392,1779549032000,-1680.0,9.125e-05,2]
[422866390,1779549032000,-1560.56399536,8.666e-05,2]
[422866394,1779549032000,-157.35,9.22e-05,2]
[422866393,1779549032000,-415.0,9.126e-05,2]
[422866395,1779549032000,-420.0,9.225e-05,2]
[422866391,1779549032000,-2903.0,8.716e-05,2]
[422866400,1779549032000,-194.50766222,0.0001,2]
[422866397,1779549032000,-1304.28957209,9.297e-05,2]
[422866399,1779549032000,-430.5346243,9.937e-05,2]
[422866398,1779549032000,-623.16917658,9.876e-05,2]
[422866430,1779549032000,-215.46,0.00013083,2]
[422866440,1779549032000,-6060.0,0.00013483,2]
[422866436,1779549032000,-6806.3292,0.00013378,2]
[422866460,1779549032000,-500.0,0.00013698,2]
[422866464,1779549032000,-2500.0,0.00013702,2]
[422866466,1779549032000,-1300.0,0.000138,5]
[422866465,1779549032000,-5000.0,0.000138,2]
[422866470,1779549032000,-3414.36644827,0.00013895,2]
[422866468,1779549032000,-2000.0,0.00013817,2]
[422866469,1779549032000,-166.66,0.00013836,2]
[422866475,1779549032000,-740.36,0.00013899,2]
[422866474,1779549032000,-162.44574641,0.00013899,2]
[422866472,1779549032000,-216.61129194,0.00013899,2]
[422866467,1779549032000,-2394.42281197,0.000138,2]
[422866473,1779549032000,-547.1,0.00013899,2]
[422866429,1779549032000,-59956.56,0.00012893,2]
[422866471,1779549032000,-179.70407958,0.00013895,21]
[422866477,1779549032000,-740.36,0.00013899,2]
[422866479,1779549032000,-740.36,0.00013899,2]
[422866481,1779549032000,-150.0,0.00013899,2]
[422866478,1779549032000,-740.36,0.00013899,2]
[422866480,1779549032000,-740.36,0.00013899,2]
[422866482,1779549032000,-601.7594973,0.00013899,2]
[422866485,1779549032000,-37727.38787486,0.000139,2]
[422866486,1779549032000,-32185.44096178,0.000139,2]
[422866483,1779549032000,-328.0,0.000139,5]
[422866484,1779549032000,-27574.24506305,0.000139,2]
[422866487,1779549032000,-559.00092513,0.000139,2]
[422866457,1779549032000,-927.0,0.00013666,2]
[422866456,1779549032000,-626.866,0.00013666,2]
[422866476,1779549032000,-740.36,0.00013899,2]
[422866453,1779549032000,-151.0,0.00013666,2]
[422866459,1779549032000,-500.0,0.00013698,2]
[422866433,1779549032000,-500.0,0.00013356,2]
[422866432,1779549032000,-900.0,0.00013356,2]
[422866435,1779549032000,-989.92,0.00013368,2]
[422866431,1779549032000,-167.42,0.00013153,2]
[422866437,1779549032000,-208.78535381,0.00013456,2]
[422866434,1779549032000,-500.0,0.00013356,2]
[422866439,1779549032000,-1224.0,0.00013483,2]
[422866442,1779549032000,-150.0,0.00013488,2]
[422866444,1779549032000,-150.0,0.00013488,2]
[422866443,1779549032000,-150.0,0.00013488,2]
[422866441,1779549032000,-3635.0,0.00013483,2]
[422866448,1779549032000,-247.554,0.00013666,2]
[422866438,1779549032000,-150.611,0.00013483,2]
[422866446,1779549032000,-61831.9953,0.00013566,2]
[422866445,1779549032000,-3414.36644828,0.000135,2]
[422866461,1779549032000,-166.66,0.00013699,2]
[422866458,1779549032000,-3546.0,0.00013666,2]
[422866455,1779549032000,-1372.906,0.00013666,2]
[422866451,1779549032000,-250.0,0.00013666,2]
[422866463,1779549032000,-600.0,0.000137,5]
[422866454,1779549032000,-151.421,0.00013666,2]
[422866452,1779549032000,-150.0,0.00013666,2]
[422866449,1779549032000,-194.725,0.00013666,2]
[422866450,1779549032000,-167.068,0.00013666,2]
[422866447,1779549032000,-150.0,0.00013666,2]
[422866462,1779549032000,-200.0,0.00013699,2]
[422866517,1779549038000,-500.0,0.00014,2]
[422866515,1779549038000,-500.0,0.00014,2]
[422866520,1779549038000,-500.0,0.00014,2]
[422866523,1779549038000,-500.0,0.00014,2]
[422866521,1779549038000,-500.0,0.00014,2]
[422866524,1779549038000,-500.0,0.00014,2]
[422866528,1779549038000,-500.0,0.00014,2]
[422866525,1779549038000,-500.0,0.00014,2]
[422866526,1779549038000,-500.0,0.00014,2]
[422866532,1779549038000,-500.0,0.00014,2]
[422866529,1779549038000,-500.0,0.00014,2]
[422866527,1779549038000,-500.0,0.00014,2]
[422866533,1779549038000,-500.0,0.00014,2]
[422866519,1779549038000,-500.0,0.00014,2]
[422866504,1779549038000,-1322953.9251752,0.000139,2]
[422866522,1779549038000,-500.0,0.00014,2]
[422866530,1779549038000,-500.0,0.00014,2]
[422866511,1779549038000,-500.0,0.00014,2]
[422866514,1779549038000,-500.0,0.00014,2]
[422866513,1779549038000,-500.0,0.00014,2]
[422866512,1779549038000,-500.0,0.00014,2]
[422866510,1779549038000,-500.0,0.00014,2]
[422866508,1779549038000,-3083.9482,0.0001399,2]
[422866509,1779549038000,-150.0,0.00013996,2]
[422866507,1779549038000,-166.66,0.00013973,2]
[422866506,1779549038000,-189.69740348,0.00013902,21]
[422866505,1779549038000,-2000.0,0.000139,5]
[422866503,1779549038000,-78999.99999998,0.000139,2]
[422866518,1779549038000,-500.0,0.00014,2]
[422866531,1779549038000,-500.0,0.00014,2]
[422866516,1779549038000,-500.0,0.00014,2]
[422866538,1779549038000,-500.0,0.00014,2]
[422866537,1779549038000,-500.0,0.00014,2]
[422866573,1779549038000,-70.44727797,0.00014,2]
[422866571,1779549038000,-429.55272203,0.00014,2]
[422866575,1779549038000,-500.0,0.00014,2]
[422866558,1779549038000,-500.0,0.00014,2]
[422866569,1779549038000,-500.0,0.00014,2]
[422866554,1779549038000,-272.00520623,0.00014,2]
[422866550,1779549038000,-158.00520623,0.00014,2]
[422866552,1779549038000,-341.99479377,0.00014,2]
[422866556,1779549038000,-227.99479377,0.00014,2]
[422866567,1779549038000,-500.0,0.00014,2]
[422866548,1779549038000,-41.99479377,0.00014,2]
[422866563,1779549038000,-500.0,0.00014,2]
[422866565,1779549038000,-500.0,0.00014,2]
[422866577,1779549038000,-74.87266369,0.00014,2]
[422866559,1779549038000,-500.0,0.00014,2]
[422866535,1779549038000,-500.0,0.00014,2]
[422866536,1779549038000,-500.0,0.00014,2]
[422866534,1779549038000,-500.0,0.00014,2]
[422866540,1779549038000,-487.93,0.00014,2]
[422866561,1779549038000,-500.0,0.00014,2]
[422866545,1779549038000,-500.0,0.00014,2]
[422866539,1779549038000,-500.0,0.00014,2]
[422866541,1779549038000,-500.0,0.00014,2]
[422866547,1779549038000,-317.0,0.00014,2]
[422866544,1779549038000,-500.0,0.00014,2]
[422866543,1779549038000,-500.0,0.00014,2]
[422866546,1779549038000,-141.00520623,0.00014,2]
[422866549,1779549038000,-500.0,0.00014,2]
[422866542,1779549038000,-500.0,0.00014,2]
[422866813,1779549040000,-500.0,0.00014,2]
[422866815,1779549040000,-500.0,0.00014,2]
[422866812,1779549040000,-500.0,0.00014,2]
[422866808,1779549040000,-500.0,0.00014,2]
[422866814,1779549040000,-500.0,0.00014,2]
[422866822,1779549040000,-500.0,0.00014,2]
[422866820,1779549040000,-500.0,0.00014,2]
[422866817,1779549040000,-500.0,0.00014,2]
[422866819,1779549040000,-500.0,0.00014,2]
[422866821,1779549040000,-500.0,0.00014,2]
[422866816,1779549040000,-500.0,0.00014,2]
[422866811,1779549040000,-500.0,0.00014,2]
[422866809,1779549040000,-500.0,0.00014,2]
[422866795,1779549040000,-500.0,0.00014,2]
[422866807,1779549040000,-500.0,0.00014,2]
[422866794,1779549040000,-203.70199689,0.00014,2]
[422866806,1779549040000,-500.0,0.00014,2]
[422866804,1779549040000,-500.0,0.00014,2]
[422866801,1779549040000,-500.0,0.00014,2]
[422866799,1779549040000,-500.0,0.00014,2]
[422866798,1779549040000,-500.0,0.00014,2]
[422866777,1779549040000,-296.29800311,0.00014,2]
[422866775,1779549040000,-500.0,0.00014,2]
[422866770,1779549040000,-5000.0,0.000138,2]
[422866773,1779549040000,-425.12733631,0.00014,2]
[422866823,1779549040000,-500.0,0.00014,2]
[422866810,1779549040000,-500.0,0.00014,2]
[422866828,1779549040000,-500.0,0.00014,2]
[422866824,1779549040000,-500.0,0.00014,2]
[422866818,1779549040000,-500.0,0.00014,2]
[422866862,1779549040000,-150.0,0.00014252,5]
[422866827,1779549040000,-500.0,0.00014,2]
[422866860,1779549040000,-150.0,0.00014252,2]
[422866859,1779549040000,-150.0,0.00014252,2]
[422866861,1779549040000,-165.0,0.00014252,2]
[422866858,1779549040000,-150.0,0.00014252,2]
[422866855,1779549040000,-500.0,0.00014252,5]
[422866857,1779549040000,-284.0,0.00014252,5]
[422866856,1779549040000,-500.0,0.00014252,5]
[422866852,1779549040000,-250.0,0.00014252,5]
[422866850,1779549040000,-150.0,0.00014252,5]
[422866846,1779549040000,-150.0,0.00014252,5]
[422866848,1779549040000,-150.0,0.00014252,5]
[422866835,1779549040000,-166.66,0.00014247,2]
[422866863,1779549040000,-150.0,0.00014252,5]
[422866832,1779549040000,-250.0,0.00014,2]
[422866826,1779549040000,-500.0,0.00014,2]
[422866825,1779549040000,-500.0,0.00014,2]
[422866830,1779549040000,-274.11,0.00014,2]
[422866834,1779549040000,-166.66,0.0001411,2]
[422866842,1779549040000,-150.0,0.00014252,5]
[422866844,1779549040000,-150.0,0.00014252,5]
[422866829,1779549040000,-500.0,0.00014,2]
[422866837,1779549040000,-500.0,0.00014252,5]
[422866831,1779549040000,-500.0,0.00014,2]
[422866836,1779549040000,-206.64800166,0.00014252,5]
[422866839,1779549040000,-621.98422306,0.00014252,5]
[422866833,1779549040000,-2008.0,0.00014,2]
[422866887,1779549041000,-740.36,0.00014611,2]
[422866889,1779549041000,-92755.77173928,0.00014612,2]
[422866890,1779549041000,-1277.08216016,0.00014612,2]
[422866891,1779549041000,-434.82070084,0.00014612,2]
[422866897,1779549041000,-2468.002165,0.00014612,2]
[422866888,1779549041000,-94735.00090246,0.00014612,2]
[422866894,1779549041000,-151.0,0.00014612,2]
[422866898,1779549041000,-560.2067094,0.0001466,2]
[422866901,1779549041000,-1164.76458018,0.00014686,2]
[422866885,1779549041000,-156.827,0.00014539,2]
[422866892,1779549041000,-8988.86929276,0.00014612,2]
[422866883,1779549041000,-182.0,0.0001452,2]
[422866876,1779549041000,-1358.0,0.00014383,2]
[422866886,1779549041000,-151.0,0.00014609,2]
[422866884,1779549041000,-1761.568,0.00014539,2]
[422866882,1779549041000,-2000.0,0.00014512,2]
[422866878,1779549041000,-166.66,0.00014384,2]
[422866880,1779549041000,-2000.0,0.000144,2]
[422866864,1779549041000,-150.0,0.00014252,5]
[422866865,1779549041000,-200.0,0.00014252,5]
[422866871,1779549041000,-2394.4228119,0.00014256,2]
[422866873,1779549041000,-3414.36644827,0.0001429,2]
[422866869,1779549041000,-200.0,0.00014252,5]
[422866867,1779549041000,-150.0,0.00014252,5]
[422866902,1779549041000,-1497.27016236,0.00014686,2]
[422866893,1779549041000,-151.0,0.00014612,2]
[422866904,1779549041000,-2000.0,0.000147,2]
[422866918,1779549041000,-478.7,0.00014827,2]
[422866903,1779549041000,-1313.72765334,0.000147,2]
[422866896,1779549041000,-2468.002165,0.00014612,2]
[422866925,1779549041000,-3400.0,0.000149,5]
[422866926,1779549041000,-164.29813334,0.000149,2]
[422866924,1779549041000,-417.0,0.000149,5]
[422866927,1779549041000,-244.14706647,0.000149,2]
[422866919,1779549041000,-576.81359689,0.00014853,2]
[422866921,1779549041000,-478.7,0.00014883,2]
[422866922,1779549041000,-433.0,0.00014894,2]
[422866928,1779549041000,-265.1286,0.000149,2]
[422866920,1779549041000,-200.0,0.0001488,2]
[422866912,1779549041000,-478.7,0.00014801,2]
[422866915,1779549041000,-308.86193702,0.00014806,2]
[422866911,1779549041000,-478.7,0.00014801,2]
[422866923,1779549041000,-266.07926628,0.000149,2]
[422866913,1779549041000,-478.8292772,0.00014803,2]
[422866914,1779549041000,-169.83806298,0.00014806,2]
[422866900,1779549041000,-752.33170573,0.00014686,2]
[422866895,1779549041000,-2468.002165,0.00014612,2]
[422866906,1779549041000,-900.0,0.00014726,2]
[422866916,1779549041000,-478.7,0.00014809,2]
[422866899,1779549041000,-154.5446271,0.0001466,2]
[422866905,1779549041000,-2394.4228119,0.00014711,2]
[422866909,1779549041000,-433.0,0.00014784,2]
[422866908,1779549041000,-433.0,0.0001474,2]
[422866917,1779549041000,-478.7,0.0001481,2]
[422866910,1779549041000,-2700.0,0.000148,5]
[422866907,1779549041000,-500.0,0.00014726,2]
[422866955,1779549043000,-500.0,0.00014999,2]
[422866949,1779549043000,-151.0,0.00014997,2]
[422866950,1779549043000,-103.41787511,0.00014999,2]
[422866951,1779549043000,-329.58212489,0.00014999,2]
[422866952,1779549043000,-500.0,0.00014999,2]
[422866953,1779549043000,-241.59955593,0.00014999,2]
[422866946,1779549043000,-478.7,0.0001498,2]
[422866948,1779549043000,-181.82792574,0.00014986,2]
[422866943,1779549043000,-167.42334602,0.000149,2]
[422866941,1779549043000,-3219.02945028,0.000149,2]
[422866945,1779549043000,-478.7,0.00014979,2]
[422866944,1779549043000,-433.0,0.00014975,2]
[422866942,1779549043000,-420.15503205,0.000149,2]
[422866940,1779549043000,-4859.06788292,0.000149,2]
[422866937,1779549043000,-325.58015431,0.00014612,2]
[422866939,1779549043000,-2431.07672376,0.000149,2]
[422866938,1779549043000,-549.82777319,0.00014612,2]
[422866933,1779549043000,-166.32,0.00013581,2]
[422866934,1779549043000,-1592.5942375,0.00014612,2]
[422866954,1779549043000,-258.40044407,0.00014999,2]